fUST/lending_fUST_20250930
["ID","MTS","AMOUNT","RATE_DAILY","PERIOD"]
[388468484,1759180270054,-480.0,0.00024229,2]
[388468485,1759180270063,-480.0,0.00024229,2]
[388468486,1759180270073,-858.48,0.00024229,2]
[388468487,1759180270083,-831.11,0.00024229,2]
[388468488,1759180270092,-1547.16,0.00024229,2]
[388468489,1759180270102,-673.71,0.00024229,2]
[388468490,1759180270111,-528.23,0.00024229,2]
[388468491,1759180270121,-480.0,0.00024229,2]
[388468492,1759180270131,-3346.74,0.00024229,2]
[388468493,1759180270140,-691.66,0.00024229,2]
[388468494,1759180270150,-599.28,0.00024229,2]
[388468495,1759180270160,-480.0,0.00024229,2]
[388468496,1759180270170,-1530.45,0.00024229,2]
[388468497,1759180270180,-480.0,0.00024229,2]
[388468498,1759180270191,-1441.05,0.00024229,2]
[388468499,1759180270201,-669.71,0.00024229,2]
[388468500,1759180270210,-480.0,0.00024229,2]
[388468501,1759180270220,-487.67,0.00024229,2]
[388468502,1759180270230,-480.0,0.00024229,2]
[388468503,1759180270241,-492.29,0.00024229,2]
[388468504,1759180270251,-3360.68,0.00024229,2]
[388468505,1759180270260,-480.0,0.00024229,2]
[388468506,1759180270270,-540.45,0.00024229,2]
[388468507,1759180270279,-941.14,0.00024229,2]
[388468508,1759180270289,-480.0,0.00024229,2]
[388468509,1759180270299,-923.95,0.00024229,2]
[388468510,1759180270309,-480.0,0.00024229,2]
[388468511,1759180270319,-200.0,0.00024229,2]
[388468512,1759180270329,-480.0,0.00024229,2]
[388468513,1759180270339,-480.0,0.00024229,2]
[388468514,1759180270348,-490.58,0.00024229,2]
[388468515,1759180270358,-480.0,0.00024229,2]
[388468516,1759180270369,-1499.12,0.00024229,2]
[388468517,1759180270379,-480.0,0.00024229,2]
[388468518,1759180270388,-480.0,0.00024229,2]
[388468519,1759180270397,-480.0,0.0002423,2]
[388468520,1759180270407,-480.0,0.0002423,2]
[388468521,1759180270416,-500.0,0.00024231,2]
[388468522,1759180270425,-480.0,0.00024231,2]
[388468523,1759180270435,-177.530435,0.00024231,7]
[388468524,1759180270444,-151.0,0.00024231,7]
[388468525,1759180270453,-151.0,0.00024231,7]
[388468526,1759180270462,-151.0,0.00024231,7]
[388468527,1759180270472,-151.0,0.00024231,7]
[388468528,1759180270481,-151.0,0.00024231,7]
[388468529,1759180270490,-272.05830827,0.00024231,2]
[388468530,1759180270500,-501.66,0.00024231,2]
[388468531,1759180270510,-480.0,0.00024231,2]
[388468532,1759180270519,-602.69,0.00024231,2]
[388468533,1759180270529,-766.71,0.00024231,2]
[388468534,1759180270538,-480.0,0.00024231,2]
[388468535,1759180270548,-1192.11,0.00024231,2]
[388468536,1759180270557,-480.0,0.00024231,2]
[388468537,1759180270566,-1627.09,0.00024231,2]
[388468538,1759180270576,-480.0,0.00024231,2]
[388468539,1759180270586,-498.01,0.00024231,2]
[388468540,1759180270595,-1025.99,0.00024231,2]
[388468541,1759180270604,-946.39,0.00024231,2]
[388468542,1759180270614,-1604.77,0.00024231,2]
[388468543,1759180270623,-480.0,0.00024231,2]
[388468544,1759180270633,-480.0,0.00024231,2]
[388468545,1759180270642,-168.0,0.00024235,2]
[388468546,1759180270652,-168.0,0.00024238,2]
[388468547,1759180270661,-150.63440084,0.00024247,2]
[388468548,1759180270670,-800.0,0.00024247,2]
[388468549,1759180270679,-800.0,0.00024283,2]
[388468550,1759180270688,-800.0,0.000243,2]
[388468551,1759180270697,-168.0,0.00024307,2]
[388468552,1759180270707,-151.0,0.00024331,7]
[388468553,1759180270716,-151.0,0.00024331,7]
[388468554,1759180270725,-151.0,0.00024331,7]
[388468555,1759180270734,-151.0,0.00024331,7]
[388468556,1759180270743,-151.0,0.00024331,7]
[388468557,1759180270754,-151.0,0.00024331,7]
[388468558,1759180270763,-297.520281,0.00024331,7]
[388468559,1759180270772,-151.0,0.00024331,7]
[388468560,1759180270781,-151.0,0.00024331,7]
[388468561,1759180270791,-151.0,0.00024331,7]
[388468562,1759180270801,-543.49497954,0.00024331,2]
[388468563,1759180270810,-530.3,0.00024331,2]
[388468564,1759180270819,-483.85,0.00024331,2]
[388468565,1759180270828,-480.0,0.00024331,2]
[388468566,1759180270838,-480.0,0.00024331,2]
[388468567,1759180270847,-480.0,0.00024331,2]
[388468568,1759180270857,-480.0,0.00024331,2]
[388468569,1759180270866,-509.19,0.00024331,2]
[388468570,1759180270875,-480.0,0.00024331,2]
[388468571,1759180270885,-959.25,0.00024331,2]
[388468572,1759180270895,-297.08594641,0.00024331,2]
[388468573,1759180270904,-480.0,0.00024331,2]
[388468574,1759180270914,-517.13,0.00024331,2]
[388468575,1759180270923,-1872.04,0.00024331,2]
[388468576,1759180270933,-480.0,0.00024331,2]
[388468577,1759180270943,-561.01,0.00024331,2]
[388468578,1759180270953,-540.93,0.00024331,2]
[388468579,1759180270962,-1396.18,0.00024331,2]
[388468580,1759180270971,-480.0,0.00024331,2]
[388468581,1759180270981,-480.0,0.00024331,2]
[388468582,1759180270991,-480.0,0.00024339,2]
[388468583,1759180271000,-480.0,0.00024339,2]
[388468584,1759180271010,-480.0,0.00024339,2]
[388468585,1759180271019,-480.0,0.00024339,2]
[388468586,1759180271029,-480.0,0.00024339,2]
[388468587,1759180271038,-480.0,0.00024339,2]
[388468588,1759180271048,-480.0,0.00024339,2]
[388468589,1759180271058,-995.88,0.00024339,2]
[388468590,1759180271068,-480.0,0.00024339,2]
[388468591,1759180271077,-480.0,0.00024339,2]
[388468592,1759180271087,-480.0,0.00024339,2]
[388468593,1759180271097,-480.0,0.00024339,2]
[388468594,1759180271107,-480.0,0.00024339,2]
[388468595,1759180271116,-825.57,0.00024339,2]
[388468596,1759180271126,-480.0,0.00024339,2]
[388468597,1759180271136,-480.0,0.00024339,2]
[388468598,1759180271145,-480.0,0.00024339,2]
[388468599,1759180271155,-480.0,0.00024339,2]
[388468600,1759180271164,-480.0,0.00024339,2]
[388468601,1759180271174,-480.0,0.00024339,2]
[388468602,1759180271183,-689.95,0.00024339,2]
[388468603,1759180271192,-480.0,0.00024339,2]
[388468604,1759180271201,-480.0,0.00024339,2]
[388468605,1759180271212,-480.0,0.00024339,2]
[388468606,1759180271221,-480.0,0.00024339,2]
[388468607,1759180271231,-153.31374206,0.00024339,2]
[388468608,1759180271240,-480.0,0.00024339,2]
[388468609,1759180271250,-480.0,0.00024339,2]
[388468610,1759180271259,-480.0,0.00024339,2]
[388468611,1759180271268,-358.19552135,0.00024339,2]
[388468612,1759180271278,-480.0,0.00024339,2]
[388468613,1759180271288,-800.0,0.00024341,2]
[388468614,1759180271297,-800.0,0.00024349,2]
[388468615,1759180271307,-2500.0,0.00024364,2]
[388468616,1759180271316,-2500.0,0.00024364,2]
[388468617,1759180271326,-2500.0,0.00024364,2]
[388468618,1759180271336,-800.0,0.00024366,2]
[388468619,1759180271347,-1500.0,0.00024368,2]
[388468620,1759180271358,-1000.0,0.00024368,2]
[388468621,1759180271370,-1560.06236629,0.00024368,2]
[388468622,1759180271380,-518.23555019,0.00024368,2]
[388468623,1759180271390,-1500.0,0.00024368,2]
[388468624,1759180271400,-500.0,0.00024368,2]
[388468625,1759180271410,-626.44245559,0.00024368,2]
[388468626,1759180271419,-1500.0,0.00024368,2]
[388468627,1759180271428,-1500.0,0.00024368,2]
[388468628,1759180271439,-530.19311456,0.00024368,2]
[388468629,1759180271448,-1500.0,0.00024368,2]
[388468630,1759180271457,-1500.0,0.00024368,2]
[388468631,1759180271467,-1500.0,0.00024368,2]
[388468632,1759180271476,-1500.0,0.00024368,2]
[388468633,1759180271487,-601.74737169,0.00024373,2]
[388468634,1759180271496,-168.0,0.00024377,2]
[388468635,1759180271506,-800.0,0.00024404,2]
[388468636,1759180271516,-150.63440084,0.00024411,2]
[388468637,1759180271526,-1564.0,0.00024442,2]
[388468638,1759180271539,-500.0,0.00024442,2]
[388468639,1759180271549,-160.0,0.00024443,5]
[388468640,1759180271558,-360.0,0.00024453,2]
[388468641,1759180271568,-800.0,0.00024481,2]
[388468642,1759180271578,-168.0,0.00024488,2]
[388468643,1759180271588,-151.0,0.0002449,2]
[388468644,1759180271597,-254.0,0.00024493,13]
[388468645,1759180271607,-480.0,0.00024499,2]
[388468646,1759180271617,-2644.79,0.00024499,2]
[388468647,1759180271628,-876.0,0.00024499,2]
[388468648,1759180271638,-722.27,0.00024499,2]
[388468649,1759180271648,-168.0,0.000245,2]
[388468650,1759180271657,-160.179414,0.000245,3]
[388468651,1759180271667,-480.0,0.00024501,2]
[388468652,1759180271677,-1345.78,0.00024501,2]
[388468653,1759180271687,-480.0,0.00024501,2]
[388468654,1759180271696,-1010.66,0.00024501,2]
[388468655,1759180271706,-480.0,0.00024501,2]
[388468656,1759180271715,-480.0,0.00024501,2]
[388468657,1759180271724,-660.3,0.00024501,2]
[388468658,1759180271735,-1371.82,0.00024501,2]
[388468659,1759180271746,-480.0,0.00024501,2]
[388468660,1759180271757,-7101.53,0.00024501,2]
[388468661,1759180271767,-2395.86,0.00024501,2]
[388468662,1759180271776,-1541.11,0.00024501,2]
[388468663,1759180271786,-588.15,0.00024501,2]
[388468664,1759180271796,-331.00368225,0.00024501,2]
[388468665,1759180271806,-2058.14,0.00024501,2]
[388468666,1759180271816,-1747.67,0.00024501,2]
[388468667,1759180271825,-480.0,0.00024503,2]
[388468668,1759180271835,-480.0,0.00024503,2]
[388468669,1759180271845,-480.0,0.00024503,2]
[388468670,1759180271854,-480.0,0.00024503,2]
[388468671,1759180271863,-480.0,0.00024503,2]
[388468672,1759180271872,-591.6,0.00024503,2]
[388468673,1759180271882,-480.0,0.00024503,2]
[388468674,1759180271891,-480.0,0.00024503,2]
[388468675,1759180271901,-480.0,0.00024503,2]
[388468676,1759180271912,-899.34,0.00024503,2]
[388468677,1759180271922,-480.0,0.00024503,2]
[388468678,1759180271931,-480.0,0.00024503,2]
[388468679,1759180271941,-480.0,0.00024503,2]
[388468680,1759180271951,-484.09729424,0.00024503,2]
[388468681,1759180271960,-480.0,0.00024503,2]
[388468682,1759180271969,-480.0,0.00024503,2]
[388468683,1759180271979,-480.0,0.00024503,2]
[388468684,1759180271988,-480.0,0.00024503,2]
[388468685,1759180271997,-480.0,0.00024503,2]
[388468686,1759180272006,-480.0,0.00024503,2]
[388468687,1759180272016,-670.92,0.00024503,2]
[388468688,1759180272025,-480.0,0.00024503,2]
[388468689,1759180272036,-664.1,0.00024503,2]
[388468690,1759180272046,-979.68,0.00024503,2]
[388468691,1759180272056,-480.0,0.00024503,2]
[388468692,1759180272065,-679.03,0.00024503,2]
[388468693,1759180272075,-480.0,0.00024503,2]
[388468694,1759180272084,-480.0,0.00024503,2]
[388468695,1759180272094,-480.0,0.00024503,2]
[388468696,1759180272104,-480.0,0.00024503,2]
[388468697,1759180272114,-480.0,0.00024503,2]
[388468698,1759180272124,-480.0,0.00024503,2]
[388468699,1759180272134,-633.7,0.00024503,2]
[388468700,1759180272143,-632.39,0.00024503,2]
[388468701,1759180272153,-545.34,0.00024503,2]
[388468702,1759180272163,-480.0,0.00024503,2]
[388468703,1759180272172,-545.58,0.00024503,2]
[388468704,1759180272182,-480.0,0.00024503,2]
[388468705,1759180272358,-543.94,0.00024503,2]
[388468706,1759180272384,-735.98,0.00024503,2]
[388468707,1759180272404,-480.0,0.00024503,2]
[388468708,1759180272424,-480.0,0.00024503,2]
[388468709,1759180272445,-480.0,0.00024503,2]
[388468710,1759180272467,-509.99,0.00024503,2]
[388468711,1759180272487,-553.31,0.00024503,2]
[388468712,1759180272500,-480.0,0.00024503,2]
[388468713,1759180272510,-739.25,0.00024503,2]
[388468714,1759180272520,-1684.91,0.00024503,2]
[388468715,1759180272529,-480.0,0.00024503,2]
[388468716,1759180272539,-480.0,0.00024503,2]
[388468717,1759180272550,-1232.01,0.00024503,2]
[388468718,1759180272560,-784.13,0.00024503,2]
[388468719,1759180272569,-480.0,0.00024503,2]
[388468720,1759180272579,-498.83,0.00024503,2]
[388468721,1759180272588,-857.29,0.00024503,2]
[388468722,1759180272597,-480.0,0.00024503,2]
[388468723,1759180272606,-1010.1,0.00024503,2]
[388468724,1759180272616,-560.85,0.00024503,2]
[388468725,1759180272625,-881.56,0.00024503,2]
[388468726,1759180272634,-525.61,0.00024503,2]
[388468727,1759180272644,-1402.76,0.00024503,2]
[388468728,1759180272654,-480.0,0.00024503,2]
[388468729,1759180272663,-4210.83,0.00024503,2]
[388468730,1759180272672,-576.69,0.00024503,2]
[388468731,1759180272682,-595.24,0.00024503,2]
[388468732,1759180272692,-480.0,0.00024503,2]
[388468733,1759180272701,-1696.01,0.00024503,2]
[388468734,1759180272711,-480.0,0.00024503,2]
[388468735,1759180272720,-1238.02,0.00024503,2]
[388468736,1759180272729,-480.0,0.00024503,2]
[388468737,1759180272739,-480.0,0.00024503,2]
[388468738,1759180272749,-858.48,0.00024503,2]
[388468739,1759180272759,-831.11,0.00024503,2]
[388468740,1759180272768,-1547.16,0.00024503,2]
[388468741,1759180272778,-673.71,0.00024503,2]
[388468742,1759180272787,-528.23,0.00024503,2]
[388468743,1759180272796,-480.0,0.00024503,2]
[388468744,1759180272806,-3346.74,0.00024503,2]
[388468745,1759180272815,-691.66,0.00024503,2]
[388468746,1759180272824,-599.28,0.00024503,2]
[388468747,1759180272833,-480.0,0.00024503,2]
[388468748,1759180272843,-1530.45,0.00024503,2]
[388468749,1759180272852,-480.0,0.00024503,2]
[388468750,1759180272862,-1441.05,0.00024503,2]
[388468751,1759180272871,-669.71,0.00024503,2]
[388468752,1759180272880,-480.0,0.00024503,2]
[388468753,1759180272889,-487.67,0.00024503,2]
[388468754,1759180272899,-480.0,0.00024503,2]
[388468755,1759180272909,-492.29,0.00024503,2]
[388468756,1759180272918,-2440.32207012,0.00024503,2]
[388468757,1759180273048,-898.0,0.00024503,2]
[388468758,1759180273060,-22.35792988,0.00024503,2]
[388468759,1759180273069,-480.0,0.00024503,2]
[388468760,1759180273078,-60.85346397,0.00024503,2]
[388468761,1759180273089,-479.59653603,0.00024503,2]
[388468762,1759180273098,-941.14,0.00024503,2]
[388468763,1759180273107,-480.0,0.00024503,2]
[388468764,1759180273116,-923.95,0.00024503,2]
[388468765,1759180273126,-480.0,0.00024503,2]
[388468766,1759180273135,-200.0,0.00024503,2]
[388468767,1759180273145,-480.0,0.00024503,2]
[388468768,1759180273154,-480.0,0.00024503,2]
[388468769,1759180273164,-490.58,0.00024503,2]
[388468770,1759180273173,-480.0,0.00024503,2]
[388468771,1759180273183,-1499.12,0.00024503,2]
[388468772,1759180273192,-480.0,0.00024503,2]
[388468773,1759180273202,-480.0,0.00024503,2]
[388468774,1759180273212,-480.0,0.00024504,2]
[388468775,1759180273221,-480.0,0.00024504,2]
[388468776,1759180273230,-500.0,0.00024505,2]
[388468777,1759180273239,-480.0,0.00024505,2]
[388468778,1759180273248,-501.66,0.00024505,2]
[388468779,1759180273259,-34.23205525,0.00024505,2]
[388468780,1759180273498,-480.0,0.00023405,2]
[388468781,1759180273507,-185.63679311,0.00023679,2]
[388468782,1759180273519,-294.36320689,0.00023679,2]
[388468783,1759180273529,-480.0,0.00023953,2]
[388468784,1759180273538,-480.0,0.00024227,2]
[388468785,1759180273547,-480.0,0.00024501,2]
[388468786,1759180273558,-445.76794475,0.00024505,2]
[388468787,1759180273567,-602.69,0.00024505,2]
[388468788,1759180273576,-766.71,0.00024505,2]
[388468789,1759180273585,-480.0,0.00024505,2]
[388468790,1759180273595,-1192.11,0.00024505,2]
[388468791,1759180273605,-209.94656917,0.00024505,2]
[388468792,1759180273616,-1399.26351777,0.00024505,2]
[388468793,1759180273627,-227.82648223,0.00024505,2]
[388468794,1759180273636,-480.0,0.00024505,2]
[388468795,1759180273645,-498.01,0.00024505,2]
[388468796,1759180273654,-1025.99,0.00024505,2]
[388468797,1759180273663,-946.39,0.00024505,2]
[388468798,1759180273673,-1604.77,0.00024505,2]
[388468799,1759180273683,-480.0,0.00024505,2]
[388468800,1759180273692,-480.0,0.00024505,2]
[388468801,1759180273701,-800.0,0.00024509,2]
[388468802,1759180273710,-479.94765416,0.00024521,2]
[388468803,1759180273720,-1121.2312142,0.00024539,2]
[388468804,1759180273729,-320.97385481,0.00024539,2]
[388468805,1759180275269,480.0,0.00022035,2]
[388468806,1759180275874,174.105813,0.00021921,2]
[388468807,1759180275924,524.62,0.00022033,2]
[388468808,1759180277127,480.0,0.00022035,2]
[388468810,1759180279042,480.0,0.00022039,2]
[388468811,1759180279755,480.0,0.00022033,2]
[388468812,1759180280860,223.516541,0.00021853,2]
[388468813,1759180280982,480.0,0.00022037,2]
[388468814,1759180281390,480.0,0.00022035,2]
[388468815,1759180285316,480.0,0.00022037,2]
[388468816,1759180287115,599.53,0.00022037,2]
[388468817,1759180287865,695.4,0.00022035,2]
[388468818,1759180288881,902.51,0.00022035,2]
[388468819,1759180290994,480.0,0.00022032,2]
[388468820,1759180293591,589.22,0.00022039,2]
[388468821,1759180295060,501.0939462,0.00022033,2]
[388468822,1759180295151,500.0,0.00022033,2]
[388468823,1759180299206,949.14,0.00022035,2]
[388468824,1759180302116,500.8736998,0.00022039,2]
[388468825,1759180302159,13.3663002,0.00022039,2]
[388468826,1759180303177,480.0,0.00022035,2]
[388468827,1759180303739,480.0,0.00022033,2]
[388468828,1759180306732,622.42,0.00022037,2]
[388468829,1759180308061,480.0,0.00022035,2]
[388468830,1759180312001,480.0,0.00022037,2]
[388468831,1759180314255,480.0,0.00022035,2]
[388468832,1759180314939,480.0,0.00022037,2]
[388468833,1759180315646,480.0,0.00022037,2]
[388468834,1759180315900,480.0,0.00022037,2]
[388468835,1759180316087,2682.19,0.00022039,2]
[388468836,1759180319640,480.0,0.00022037,2]
[388468837,1759180321631,1170.03,0.00022037,2]
[388468838,1759180325318,480.0,0.00022037,2]
[388468839,1759180326045,480.0,0.00022037,2]
[388468840,1759180326733,232.0036998,0.00022033,2]
[388468841,1759180326776,267.9963002,0.00022033,2]
[388468842,1759180327039,500.0,0.00022033,2]
[388468843,1759180327703,-500.0,0.00022298,2]
[388468844,1759180327757,-480.0,0.00022306,2]
[388468845,1759180327809,-524.62,0.00022307,2]
[388468846,1759180327860,-480.0,0.00022307,2]
[388468847,1759180327913,-480.0,0.00022307,2]
[388468848,1759180327965,-480.0,0.00022309,2]
[388468849,1759180328016,-480.0,0.00022309,2]
[388468850,1759180328065,-480.0,0.00022309,2]
[388468851,1759180328115,-695.4,0.00022309,2]
[388468852,1759180328764,500.0,0.00022033,2]
[388468853,1759180328915,-902.51,0.00022309,2]
[388468854,1759180328961,-949.14,0.00022309,2]
[388468855,1759180329009,-480.0,0.00022309,2]
[388468856,1759180329057,-480.0,0.00022309,2]
[388468857,1759180329106,-480.0,0.00022309,2]
[388468858,1759180329155,-480.0,0.00022311,2]
[388468859,1759180329206,-480.0,0.00022311,2]
[388468860,1759180329254,-599.53,0.00022311,2]
[388468861,1759180329446,500.0,0.00022035,2]
[388468862,1759180329533,569.28535218,0.00022036,2]
[388468863,1759180337252,-575.74646135,0.00022033,2]
[388468864,1759180337296,-598.5,0.00022035,2]
[388468865,1759180337343,-515.98,0.00022037,2]
[388468866,1759180337393,-480.0,0.00022037,2]
[388468867,1759180337436,-484.81,0.00022039,2]
[388468868,1759180337482,-598.5,0.00022309,2]
[388468869,1759180337526,-622.42,0.00022311,2]
[388468870,1759180337570,-507.95133085,0.00022311,2]
[388468871,1759180337615,-480.0,0.00022311,2]
[388468872,1759180338006,-480.0,0.00022311,2]
[388468873,1759180338055,-480.0,0.00022311,2]
[388468874,1759180338107,-480.0,0.00022311,2]
[388468875,1759180338158,-1170.03,0.00022311,2]
[388468876,1759180338209,-480.0,0.00022311,2]
[388468877,1759180338257,-480.0,0.00022311,2]
[388468878,1759180338305,-515.98,0.00022311,2]
[388468879,1759180338351,-480.0,0.00022311,2]
[388468880,1759180338395,-387.99,0.00022313,2]
[388468881,1759180347264,-480.0,0.00022033,2]
[388468882,1759180347312,-480.0,0.00022033,2]
[388468883,1759180347362,-480.0,0.00022033,2]
[388468884,1759180347408,-481.05609909,0.00022033,2]
[388468885,1759180347452,-480.0,0.00022033,2]
[388468886,1759180347503,-552.06,0.00022035,2]
[388468887,1759180347551,-936.12,0.00022035,2]
[388468888,1759180347597,-480.0,0.00022037,2]
[388468889,1759180347647,-291.98939186,0.00022037,2]
[388468890,1759180347702,-197.5590181,0.00022037,2]
[388468891,1759180347933,-282.4409819,0.00022037,2]
[388468892,1759180347977,-480.0,0.00022307,2]
[388468893,1759180348022,-480.0,0.00022307,2]
[388468894,1759180348068,-480.0,0.00022307,2]
[388468895,1759180348267,-480.0,0.00022307,2]
[388468896,1759180348313,-552.06,0.00022309,2]
[388468897,1759180348360,-936.12,0.00022309,2]
[388468898,1759180348406,-1200.0,0.0002231,2]
[388468899,1759180350573,-346.06,0.00022033,2]
[388468900,1759180357345,-480.0,0.00022032,2]
[388468901,1759180357389,-500.0,0.00022033,2]
[388468902,1759180357431,-500.0,0.00022033,2]
[388468903,1759180357476,-585.29924229,0.00022033,2]
[388468904,1759180357522,-531.40449135,0.00022033,2]
[388468905,1759180357568,-500.0,0.00022033,2]
[388468906,1759180357613,-500.0,0.00022033,2]
[388468907,1759180357660,-197.27587898,0.00022033,2]
[388468908,1759180357709,-500.0,0.00022033,2]
[388468909,1759180357758,-165.10664569,0.00022033,2]
[388468910,1759180357808,-500.0,0.00022033,2]
[388468911,1759180358040,-500.0,0.00022033,2]
[388468912,1759180358091,-500.0,0.00022033,2]
[388468913,1759180358142,-352.1336018,0.00022033,2]
[388468914,1759180358193,-500.0,0.00022033,2]
[388468915,1759180358242,-500.0,0.00022033,2]
[388468916,1759180358288,-133.94,0.00022033,2]
[388468917,1759180358335,-480.0,0.00022033,2]
[388468918,1759180358381,-627.12,0.00022033,2]
[388468919,1759180358426,-480.0,0.00022035,2]
[388468920,1759180358471,-480.0,0.00022037,2]
[388468921,1759180358518,-252.48320606,0.00022037,2]
[388468922,1759180367546,-800.23,0.00022032,2]
[388468923,1759180367590,-480.0,0.00022033,2]
[388468924,1759180367634,-480.0,0.00022033,2]
[388468925,1759180367679,-480.0,0.00022033,2]
[388468926,1759180367724,-480.0,0.00022037,2]
[388468927,1759180367781,-814.43,0.00022037,2]
[388468928,1759180367825,-480.0,0.00022037,2]
[388468929,1759180367870,-480.0,0.00022037,2]
[388468930,1759180368152,-1952.27,0.00022039,2]
[388468931,1759180368200,-480.0,0.00022039,2]
[388468932,1759180368244,-480.0,0.00022306,2]
[388468933,1759180368289,-800.23,0.00022306,2]
[388468934,1759180368331,-480.0,0.00022307,2]
[388468935,1759180368376,-627.12,0.00022307,2]
[388468936,1759180368718,-480.0,0.00022307,2]
[388468937,1759180368766,-480.0,0.00022307,2]
[388468938,1759180368812,-480.0,0.00022307,2]
[388468939,1759180368857,-480.0,0.00022309,2]
[388468940,1759180368908,-480.0,0.00022311,2]
[388468941,1759180368959,-480.0,0.00022311,2]
[388468942,1759180369009,-814.43,0.00022311,2]
[388468943,1759180369058,-480.0,0.00022311,2]
[388468944,1759180369103,-480.0,0.00022311,2]
[388468945,1759180369148,-92.01,0.00022313,2]
[388468946,1759180369334,-589.22,0.00022313,2]
[388468947,1759180369383,-514.24,0.00022313,2]
[388468948,1759180369432,-2682.19,0.00022313,2]
[388468949,1759180369477,-484.81,0.00022313,2]
[388468950,1759180377331,-480.0,0.00022033,2]
[388468951,1759180377378,-4142.56,0.00022033,2]
[388468952,1759180377427,-274.89,0.00022035,2]
[388468953,1759180377607,-205.11,0.00022035,2]
[388468954,1759180377653,-892.76,0.00022039,2]
[388468955,1759180377699,-3661.71,0.00022307,2]
[388468956,1759180377831,-480.85,0.00022307,2]
[388468957,1759180377878,-480.0,0.00022309,2]
[388468958,1759180377924,-1952.27,0.00022313,2]
[388468959,1759180377971,-480.0,0.00022313,2]
[388468960,1759180378019,-892.76,0.00022313,2]
[388468961,1759180378065,-221.40483624,0.00022487,2]
[388468962,1759180378113,-480.0,0.0002258,2]
[388468963,1759180407431,-300.0,0.00021933,2]
[388468964,1759180407877,-764.11032752,0.00021934,2]
[388468965,1759180407923,-10000.01,0.00021934,2]
[388468966,1759180417404,-10000.01,0.00021934,2]
[388468967,1759180418436,-10000.01,0.00021934,2]
[388468968,1759180418583,-10000.01,0.00021934,2]
[388468969,1759180418742,-10000.01,0.00021934,2]
[388468970,1759180441068,-346.06,0.00021934,2]
[388468971,1759180442694,300.0,0.00021933,2]
[388468972,1759180456542,-154.8434672,0.00021934,2]
[388468973,1759180470033,216.45,0.00021924,3]
[388468974,1759180472143,546.79387937,0.00021933,2]
[388468975,1759180472201,196.98279212,0.00021933,2]
[388468976,1759180472243,-273.94,0.00021934,2]
[388468977,1759180474973,204.99820667,0.00021933,2]
[388468978,1759180475026,174.72026906,0.00021933,2]
[388468979,1759180475076,500.0,0.00021933,2]
[388468980,1759180475135,298.13332118,0.00021933,2]
[388468981,1759180480523,273.94,0.00021924,3]
[388468982,1759180488308,-394.24828466,0.00021934,2]
[388468983,1759180501500,394.25,0.00021924,3]
[388468984,1759180502415,259.0,0.00021933,2]